fUSD/lending_fUSD_20251225
["ID","MTS","AMOUNT","RATE_DAILY","PERIOD"]
[399787824,1766677844060,-194.3242755,0.00015579,2]
[399787825,1766677844071,-150.0,0.00015585,2]
[399787826,1766677844081,-278.77144016,0.00015597,2]
[399787827,1766677844092,-161.31844232,0.00015597,2]
[399787828,1766677844102,-297.95782192,0.00015597,2]
[399787829,1766677844112,-208.13382846,0.00015597,2]
[399787830,1766677844124,-401.09949094,0.00015597,2]
[399787831,1766677844134,-194.3242755,0.00015597,2]
[399787832,1766677844145,-150.0,0.00015602,2]
[399787833,1766677844155,-846.7,0.00015605,2]
[399787834,1766677844166,-150.0,0.00015606,2]
[399787835,1766677844176,-150.0,0.00015608,2]
[399787836,1766677844187,-278.77144016,0.00015614,2]
[399787837,1766677844197,-161.31844232,0.00015614,2]
[399787838,1766677844207,-297.95782192,0.00015614,2]
[399787839,1766677844217,-208.13382846,0.00015614,2]
[399787840,1766677844227,-401.09949094,0.00015614,2]
[399787841,1766677844238,-194.3242755,0.00015614,2]
[399787842,1766677844248,-150.0,0.00015619,2]
[399787843,1766677844259,-150.0,0.00015627,2]
[399787844,1766677844269,-150.0,0.00015627,2]
[399787845,1766677844279,-278.77144016,0.00015631,2]
[399787846,1766677844291,-161.31844232,0.00015631,2]
[399787847,1766677844300,-297.95782192,0.00015631,2]
[399787848,1766677844310,-208.13382846,0.00015631,2]
[399787849,1766677844320,-401.09949094,0.00015631,2]
[399787850,1766677844330,-194.3242755,0.00015631,2]
[399787851,1766677844341,-150.0,0.0001564,2]
[399787852,1766677844351,-10610.10242524,0.00015644,2]
[399787853,1766677844362,-214.20136534,0.00015644,2]
[399787854,1766677844372,-278.77144016,0.00015648,2]
[399787855,1766677844382,-161.31844232,0.00015648,2]
[399787856,1766677844392,-297.95782192,0.00015648,2]
[399787857,1766677844403,-208.13382846,0.00015648,2]
[399787858,1766677844413,-401.09949094,0.00015648,2]
[399787859,1766677844423,-194.3242755,0.00015648,2]
[399787860,1766677844434,-150.0,0.00015649,2]
[399787861,1766677844444,-150.0,0.00015661,2]
[399787862,1766677844454,-278.77144016,0.00015665,2]
[399787863,1766677844464,-161.31844232,0.00015665,2]
[399787864,1766677844474,-297.95782192,0.00015665,2]
[399787865,1766677844484,-208.13382846,0.00015665,2]
[399787866,1766677844494,-401.09949094,0.00015665,2]
[399787867,1766677844504,-150.0,0.00015665,2]
[399787868,1766677844514,-194.3242755,0.00015665,2]
[399787869,1766677844524,-150.0,0.0001567,2]
[399787870,1766677844534,-150.0,0.00015672,2]
[399787871,1766677844544,-150.0,0.00015676,2]
[399787872,1766677844555,-278.77144016,0.00015682,2]
[399787873,1766677844565,-161.31844232,0.00015682,2]
[399787874,1766677844576,-297.95782192,0.00015682,2]
[399787875,1766677844586,-208.13382846,0.00015682,2]
[399787876,1766677844598,-401.09949094,0.00015682,2]
[399787877,1766677844608,-194.3242755,0.00015682,2]
[399787878,1766677844619,-168.53,0.00015684,2]
[399787879,1766677844630,-150.0,0.00015691,2]
[399787880,1766677844640,-278.77144016,0.00015699,2]
[399787881,1766677844651,-161.31844232,0.00015699,2]
[399787882,1766677844662,-297.95782192,0.00015699,2]
[399787883,1766677844673,-208.13382846,0.00015699,2]
[399787884,1766677844685,-401.09949094,0.00015699,2]
[399787885,1766677844696,-194.3242755,0.00015699,2]
[399787886,1766677844706,-150.0,0.00015702,2]
[399787887,1766677844715,-150.0,0.00015704,2]
[399787888,1766677844726,-150.0,0.00015712,2]
[399787889,1766677844736,-150.0,0.00015712,2]
[399787890,1766677844746,-150.0,0.00015712,2]
[399787891,1766677844757,-278.77144016,0.00015717,2]
[399787892,1766677844767,-161.31844232,0.00015717,2]
[399787893,1766677844778,-297.95782192,0.00015717,2]
[399787894,1766677844788,-208.13382846,0.00015717,2]
[399787895,1766677844799,-401.09949094,0.00015717,2]
[399787896,1766677844809,-194.3242755,0.00015717,2]
[399787897,1766677844820,-150.0,0.00015724,2]
[399787898,1766677844830,-150.0,0.00015728,2]
[399787899,1766677844840,-150.0,0.00015734,2]
[399787900,1766677844851,-278.77144016,0.00015734,2]
[399787901,1766677844862,-161.31844232,0.00015734,2]
[399787902,1766677844872,-297.95782192,0.00015734,2]
[399787903,1766677844885,-208.13382846,0.00015734,2]
[399787904,1766677844897,-401.09949094,0.00015734,2]
[399787905,1766677844907,-194.3242755,0.00015734,2]
[399787906,1766677844918,-150.0,0.00015736,2]
[399787907,1766677844929,-150.0,0.00015743,2]
[399787908,1766677844940,-278.77144016,0.00015751,2]
[399787909,1766677844950,-161.31844232,0.00015751,2]
[399787910,1766677844962,-297.95782192,0.00015751,2]
[399787911,1766677844972,-208.13382846,0.00015751,2]
[399787912,1766677844983,-401.09949094,0.00015751,2]
[399787913,1766677844994,-194.3242755,0.00015751,2]
[399787914,1766677845003,-150.0,0.00015755,2]
[399787915,1766677845014,-278.77144016,0.00015768,2]
[399787916,1766677845024,-161.31844232,0.00015768,2]
[399787917,1766677845034,-297.95782192,0.00015768,2]
[399787918,1766677845044,-208.13382846,0.00015768,2]
[399787919,1766677845054,-401.09949094,0.00015768,2]
[399787920,1766677845065,-194.3242755,0.00015768,2]
[399787921,1766677845075,-150.0,0.00015768,2]
[399787922,1766677845085,-150.0,0.00015773,2]
[399787923,1766677845095,-150.0,0.00015776,2]
[399787924,1766677845106,-150.0,0.00015785,2]
[399787925,1766677845117,-278.77144016,0.00015785,2]
[399787926,1766677845126,-161.31844232,0.00015785,2]
[399787927,1766677845136,-297.95782192,0.00015785,2]
[399787928,1766677845146,-208.13382846,0.00015785,2]
[399787929,1766677845157,-401.09949094,0.00015785,2]
[399787930,1766677845168,-194.3242755,0.00015785,2]
[399787931,1766677845178,-150.0,0.00015791,2]
[399787932,1766677845188,-150.0,0.00015797,2]
[399787933,1766677845198,-150.0,0.000158,2]
[399787934,1766677845209,-278.77144016,0.00015802,2]
[399787935,1766677845219,-161.31844232,0.00015802,2]
[399787936,1766677845229,-297.95782192,0.00015802,2]
[399787937,1766677845240,-208.13382846,0.00015802,2]
[399787938,1766677845251,-401.09949094,0.00015802,2]
[399787939,1766677845262,-194.3242755,0.00015802,2]
[399787940,1766677845271,-150.0,0.00015818,2]
[399787941,1766677845282,-278.77144016,0.0001582,2]
[399787942,1766677845292,-161.31844232,0.0001582,2]
[399787943,1766677845303,-297.95782192,0.0001582,2]
[399787944,1766677845313,-208.13382846,0.0001582,2]
[399787945,1766677845323,-401.09949094,0.0001582,2]
[399787946,1766677845334,-194.3242755,0.0001582,2]
[399787947,1766677845344,-150.0,0.00015822,2]
[399787948,1766677845354,-293.18,0.00015824,2]
[399787949,1766677845365,-150.0,0.00015826,2]
[399787950,1766677845375,-150.0,0.00015833,2]
[399787951,1766677845386,-278.77144016,0.00015837,2]
[399787952,1766677845396,-161.31844232,0.00015837,2]
[399787953,1766677845407,-297.95782192,0.00015837,2]
[399787954,1766677845418,-208.13382846,0.00015837,2]
[399787955,1766677845428,-401.09949094,0.00015837,2]
[399787956,1766677845438,-194.3242755,0.00015837,2]
[399787957,1766677845448,-236.57,0.00015837,2]
[399787958,1766677845459,-150.0,0.0001584,2]
[399787959,1766677845471,-278.77144016,0.00015854,2]
[399787960,1766677845481,-161.31844232,0.00015854,2]
[399787961,1766677845492,-297.95782192,0.00015854,2]
[399787962,1766677845502,-208.13382846,0.00015854,2]
[399787963,1766677845514,-401.09949094,0.00015854,2]
[399787964,1766677845524,-150.0,0.00015854,2]
[399787965,1766677845535,-194.3242755,0.00015854,2]
[399787966,1766677845613,-150.0,0.00015854,2]
[399787967,1766677845623,-150.0,0.00015854,2]
[399787968,1766677845633,-150.0,0.00015861,2]
[399787969,1766677845644,-150.0,0.00015865,2]
[399787970,1766677845654,-150.0,0.00015868,2]
[399787971,1766677845664,-150.0,0.0001587,2]
[399787972,1766677845675,-278.77144016,0.00015871,2]
[399787973,1766677845686,-161.31844232,0.00015871,2]
[399787974,1766677845696,-297.95782192,0.00015871,2]
[399787975,1766677845707,-208.13382846,0.00015871,2]
[399787976,1766677845717,-401.09949094,0.00015871,2]
[399787977,1766677845727,-194.3242755,0.00015871,2]
[399787978,1766677845738,-2000.0,0.00015873,2]
[399787979,1766677845748,-2000.0,0.00015873,2]
[399787980,1766677845758,-2000.0,0.00015873,2]
[399787981,1766677845768,-2000.0,0.00015873,2]
[399787982,1766677845778,-846.7,0.00015879,2]
[399787983,1766677845788,-150.0,0.00015882,2]
[399787984,1766677845799,-278.77144016,0.00015888,2]
[399787985,1766677845808,-161.31844232,0.00015888,2]
[399787986,1766677845823,-297.95782192,0.00015888,2]
[399787987,1766677845834,-208.13382846,0.00015888,2]
[399787988,1766677845844,-401.09949094,0.00015888,2]
[399787989,1766677845855,-194.3242755,0.00015888,2]
[399787990,1766677845865,-150.0,0.00015897,2]
[399787991,1766677845876,-150.0,0.00015903,2]
[399787992,1766677845888,-278.77144016,0.00015905,2]
[399787993,1766677845898,-161.31844232,0.00015905,2]
[399787994,1766677845908,-297.95782192,0.00015905,2]
[399787995,1766677845919,-208.13382846,0.00015905,2]
[399787996,1766677845929,-401.09949094,0.00015905,2]
[399787997,1766677845939,-194.3242755,0.00015905,2]
[399787998,1766677845949,-150.0,0.00015909,2]
[399787999,1766677845959,-168.53,0.00015915,2]
[399788000,1766677845969,-150.0,0.00015917,2]
[399788001,1766677845980,-150.0,0.00015919,2]
[399788002,1766677845990,-278.77144016,0.00015923,2]
[399788003,1766677846000,-161.31844232,0.00015923,2]
[399788004,1766677846011,-297.95782192,0.00015923,2]
[399788005,1766677846022,-208.13382846,0.00015923,2]
[399788006,1766677846032,-401.09949094,0.00015923,2]
[399788007,1766677846043,-194.3242755,0.00015923,2]
[399788008,1766677846053,-150.0,0.00015925,2]
[399788009,1766677846064,-150.0,0.00015925,2]
[399788010,1766677846074,-150.0,0.00015929,2]
[399788011,1766677846084,-278.77144016,0.0001594,2]
[399788012,1766677846094,-161.31844232,0.0001594,2]
[399788013,1766677846105,-297.95782192,0.0001594,2]
[399788014,1766677846116,-208.13382846,0.0001594,2]
[399788015,1766677846126,-401.09949094,0.0001594,2]
[399788016,1766677846137,-194.3242755,0.0001594,2]
[399788017,1766677846147,-150.0,0.00015946,2]
[399788018,1766677846158,-150.0,0.00015951,2]
[399788019,1766677846168,-278.77144016,0.00015957,2]
[399788020,1766677846178,-161.31844232,0.00015957,2]
[399788021,1766677846188,-297.95782192,0.00015957,2]
[399788022,1766677846203,-208.13382846,0.00015957,2]
[399788023,1766677846213,-401.09949094,0.00015957,2]
[399788024,1766677846224,-194.3242755,0.00015957,2]
[399788025,1766677846235,-150.0,0.00015961,2]
[399788026,1766677846245,-215.0738,0.00015963,2]
[399788027,1766677846256,-150.0,0.00015967,2]
[399788028,1766677846266,-150.0,0.00015967,2]
[399788029,1766677846276,-278.77144016,0.00015974,2]
[399788030,1766677846285,-161.31844232,0.00015974,2]
[399788032,1766677846295,-297.95782192,0.00015974,2]
[399788033,1766677846305,-208.13382846,0.00015974,2]
[399788035,1766677846314,-401.09949094,0.00015974,2]
[399788036,1766677846324,-194.3242755,0.00015974,2]
[399788037,1766677846335,-150.0,0.0001598,2]
[399788038,1766677846345,-150.0,0.00015988,2]
[399788039,1766677846355,-278.77144016,0.00015991,2]
[399788040,1766677846366,-161.31844232,0.00015991,2]
[399788041,1766677846376,-297.95782192,0.00015991,2]
[399788042,1766677846387,-208.13382846,0.00015991,2]
[399788043,1766677846397,-401.09949094,0.00015991,2]
[399788044,1766677846407,-194.3242755,0.00015991,2]
[399788045,1766677846418,-150.0,0.00015992,2]
[399788046,1766677846429,-150.0,0.00015993,2]
[399788047,1766677846439,-150.0,0.00015995,2]
[399788048,1766677846450,-622.31367143,0.00015999,2]
[399788049,1766677846460,-514.26394542,0.00015999,2]
[399788050,1766677846470,-500.0,0.00015999,2]
[399788051,1766677846480,-278.77144016,0.00016008,2]
[399788052,1766677846489,-161.31844232,0.00016008,2]
[399788053,1766677846499,-297.95782192,0.00016008,2]
[399788054,1766677846511,-208.13382846,0.00016008,2]
[399788055,1766677846520,-401.09949094,0.00016008,2]
[399788056,1766677846531,-194.3242755,0.00016008,2]
[399788057,1766677846541,-150.0,0.0001601,2]
[399788058,1766677846551,-150.0,0.00016016,2]
[399788059,1766677846561,-150.0,0.00016025,2]
[399788060,1766677846571,-278.77144016,0.00016025,2]
[399788061,1766677846586,-161.31844232,0.00016025,2]
[399788062,1766677846596,-297.95782192,0.00016025,2]
[399788063,1766677846607,-208.13382846,0.00016025,2]
[399788064,1766677846617,-401.09949094,0.00016025,2]
[399788065,1766677846628,-194.3242755,0.00016025,2]
[399788066,1766677846639,-150.0,0.00016031,2]
[399788067,1766677846649,-150.0,0.00016033,2]
[399788068,1766677846659,-278.77144016,0.00016043,2]
[399788069,1766677846669,-161.31844232,0.00016043,2]
[399788070,1766677846680,-297.95782192,0.00016043,2]
[399788071,1766677846691,-208.13382846,0.00016043,2]
[399788072,1766677846701,-401.09949094,0.00016043,2]
[399788073,1766677846711,-150.0,0.00016043,2]
[399788074,1766677846725,-194.3242755,0.00016043,2]
[399788075,1766677846735,-150.0,0.00016052,2]
[399788076,1766677846745,-150.0,0.00016057,2]
[399788077,1766677846755,-278.77144016,0.0001606,2]
[399788078,1766677846765,-161.31844232,0.0001606,2]
[399788079,1766677846775,-297.95782192,0.0001606,2]
[399788080,1766677846788,-208.13382846,0.0001606,2]
[399788081,1766677846798,-401.09949094,0.0001606,2]
[399788082,1766677846808,-194.3242755,0.0001606,2]
[399788083,1766677846818,-10610.10242524,0.00016063,2]
[399788084,1766677846828,-150.0,0.00016064,2]
[399788085,1766677846838,-150.0,0.00016073,2]
[399788086,1766677846848,-150.0,0.00016075,2]
[399788087,1766677846858,-278.77144016,0.00016077,2]
[399788088,1766677846868,-161.31844232,0.00016077,2]
[399788089,1766677846879,-297.95782192,0.00016077,2]
[399788090,1766677846891,-208.13382846,0.00016077,2]
[399788091,1766677846901,-401.09949094,0.00016077,2]
[399788092,1766677846911,-194.3242755,0.00016077,2]
[399788093,1766677846922,-150.0,0.00016089,2]
[399788094,1766677846934,-278.77144016,0.00016094,2]
[399788095,1766677846944,-161.31844232,0.00016094,2]
[399788096,1766677846954,-297.95782192,0.00016094,2]
[399788097,1766677846965,-208.13382846,0.00016094,2]
[399788098,1766677846974,-401.09949094,0.00016094,2]
[399788099,1766677846985,-194.3242755,0.00016094,2]
[399788100,1766677846995,-150.0,0.00016095,2]
[399788101,1766677847006,-150.0,0.00016106,2]
[399788102,1766677847015,-278.77144016,0.00016111,2]
[399788103,1766677847025,-161.31844232,0.00016111,2]
[399788104,1766677847036,-297.95782192,0.00016111,2]
[399788105,1766677847046,-208.13382846,0.00016111,2]
[399788106,1766677847056,-401.09949094,0.00016111,2]
[399788107,1766677847066,-194.3242755,0.00016111,2]
[399788108,1766677847077,-150.0,0.00016113,2]
[399788109,1766677847087,-150.0,0.00016116,2]
[399788110,1766677847097,-6699.7,0.00016116,2]
[399788111,1766677847106,-150.0,0.00016116,2]
[399788112,1766677847116,-150.0,0.00016121,2]
[399788113,1766677847126,-278.77144016,0.00016128,2]
[399788114,1766677847136,-161.31844232,0.00016128,2]
[399788115,1766677847145,-297.95782192,0.00016128,2]
[399788116,1766677847158,-208.13382846,0.00016128,2]
[399788117,1766677847167,-401.09949094,0.00016128,2]
[399788118,1766677847178,-194.3242755,0.00016128,2]
[399788119,1766677847188,-150.0,0.00016137,2]
[399788120,1766677847199,-150.0,0.00016137,2]
[399788121,1766677847210,-150.0,0.00016137,2]
[399788122,1766677847220,-150.0,0.00016137,2]
[399788123,1766677847231,-150.0,0.00016137,2]
[399788124,1766677847241,-278.77144016,0.00016146,2]
[399788125,1766677847251,-161.31844232,0.00016146,2]
[399788126,1766677847261,-297.95782192,0.00016146,2]
[399788127,1766677847272,-208.13382846,0.00016146,2]
[399788128,1766677847282,-401.09949094,0.00016146,2]
[399788129,1766677847293,-194.3242755,0.00016146,2]
[399788130,1766677847303,-500.0,0.00016148,2]
[399788131,1766677847313,-468.52172957,0.00016149,2]
[399788132,1766677847323,-500.0,0.00016149,2]
[399788133,1766677847333,-500.0,0.00016149,2]
[399788134,1766677847344,-574.12855637,0.00016149,2]
[399788135,1766677847353,-6928.99380159,0.00016149,2]
[399788136,1766677847363,-500.0,0.00016149,2]
[399788137,1766677847374,-500.0,0.00016149,2]
[399788138,1766677847383,-500.0,0.00016149,2]
[399788139,1766677847394,-578.20924308,0.00016149,2]
[399788140,1766677847404,-500.0,0.00016149,2]
[399788141,1766677847414,-500.0,0.00016149,2]
[399788142,1766677847424,-500.0,0.00016149,2]
[399788143,1766677847436,-500.0,0.00016149,2]
[399788144,1766677847447,-500.0,0.00016149,2]
[399788145,1766677847457,-283.18901002,0.00016149,2]
[399788146,1766677847467,-500.0,0.00016149,2]
[399788147,1766677847477,-500.0,0.00016149,2]
[399788148,1766677847487,-500.0,0.00016149,2]
[399788149,1766677847498,-620.0,0.00016149,2]
[399788150,1766677847508,-500.0,0.00016149,2]
[399788151,1766677847518,-1500.0,0.00016149,2]
[399788152,1766677847528,-500.0,0.00016149,2]
[399788153,1766677847537,-1000.0,0.00016149,2]
[399788154,1766677847547,-500.0,0.00016149,2]
[399788155,1766677847557,-500.0,0.00016149,2]
[399788156,1766677847567,-500.0,0.00016149,2]
[399788157,1766677847577,-500.0,0.00016149,2]
[399788158,1766677847587,-500.0,0.00016149,2]
[399788159,1766677847597,-500.0,0.00016149,2]
[399788160,1766677847607,-500.0,0.00016149,2]
[399788161,1766677847616,-500.0,0.00016149,2]
[399788162,1766677847626,-151.0,0.00016149,2]
[399788163,1766677847636,-500.0,0.00016149,2]
[399788164,1766677847646,-250.0,0.00016149,2]
[399788165,1766677847655,-250.0,0.00016149,2]
[399788166,1766677847665,-250.0,0.00016149,2]
[399788167,1766677847675,-250.0,0.00016149,2]
[399788168,1766677847685,-250.0,0.00016149,2]
[399788169,1766677847695,-250.0,0.00016149,2]
[399788170,1766677847705,-250.0,0.00016149,2]
[399788171,1766677847715,-250.0,0.00016149,2]
[399788172,1766677847725,-250.0,0.00016149,2]
[399788173,1766677847735,-200.0,0.00016149,2]
[399788174,1766677847744,-250.0,0.00016149,2]
[399788175,1766677847754,-250.0,0.00016149,2]
[399788176,1766677847764,-250.0,0.00016149,2]
[399788177,1766677847773,-207.4,0.00016149,2]
[399788178,1766677847783,-250.0,0.00016149,2]
[399788179,1766677847793,-250.0,0.00016149,2]
[399788180,1766677847803,-250.0,0.00016149,2]
[399788181,1766677847814,-1500.0,0.00016149,2]
[399788182,1766677847824,-250.0,0.00016149,2]
[399788183,1766677847834,-250.0,0.00016149,2]
[399788184,1766677847844,-215.0738,0.00016149,2]
[399788185,1766677847854,-1500.0,0.00016149,2]
[399788186,1766677847864,-250.0,0.00016149,2]
[399788187,1766677847874,-223.0315306,0.00016149,2]
[399788188,1766677847885,-250.0,0.00016149,2]
[399788189,1766677847896,-1500.0,0.00016149,2]
[399788190,1766677847906,-231.28369723,0.00016149,2]
[399788191,1766677847916,-250.0,0.00016149,2]
[399788192,1766677847927,-250.0,0.00016149,2]
[399788193,1766677847938,-1500.0,0.00016149,2]
[399788194,1766677847948,-239.84119403,0.00016149,2]
[399788195,1766677847958,-250.0,0.00016149,2]
[399788196,1766677847968,-1500.0,0.00016149,2]
[399788197,1766677847978,-250.0,0.00016149,2]
[399788198,1766677847988,-248.71531821,0.00016149,2]
[399788199,1766677847997,-250.0,0.00016149,2]
[399788200,1766677848007,-1500.0,0.00016149,2]
[399788201,1766677848017,-250.0,0.00016149,2]
[399788202,1766677848027,-257.91778498,0.00016149,2]
[399788203,1766677848038,-1500.0,0.00016149,2]
[399788204,1766677848048,-250.0,0.00016149,2]
[399788205,1766677848058,-267.46074303,0.00016149,2]
[399788206,1766677848068,-1500.0,0.00016149,2]
[399788207,1766677848078,-250.0,0.00016149,2]
[399788208,1766677848088,-277.35679052,0.00016149,2]
[399788209,1766677848098,-1500.0,0.00016149,2]
[399788210,1766677848108,-1500.0,0.00016149,2]
[399788211,1766677848118,-1500.0,0.00016149,2]
[399788212,1766677848128,-322.6107,0.00016149,2]
[399788213,1766677848137,-150.0,0.00016153,2]
[399788214,1766677848146,-150.0,0.00016158,2]
[399788215,1766677848157,-150.0,0.00016158,2]
[399788216,1766677848168,-150.0,0.00016161,2]
[399788217,1766677848178,-278.77144016,0.00016163,2]
[399788218,1766677848196,-161.31844232,0.00016163,2]
[399788219,1766677848206,-297.95782192,0.00016163,2]
[399788220,1766677848217,-208.13382846,0.00016163,2]
[399788221,1766677848227,-401.09949094,0.00016163,2]
[399788222,1766677848237,-194.3242755,0.00016163,2]
[399788223,1766677848247,-150.0,0.00016168,2]
[399788224,1766677848257,-168.53,0.00016177,2]
[399788225,1766677848268,-150.0,0.00016179,2]
[399788226,1766677848278,-278.77144016,0.0001618,2]
[399788227,1766677848288,-161.31844232,0.0001618,2]
[399788228,1766677848299,-297.95782192,0.0001618,2]
[399788229,1766677848309,-208.13382846,0.0001618,2]
[399788230,1766677848318,-401.09949094,0.0001618,2]
[399788231,1766677848328,-194.3242755,0.0001618,2]
[399788232,1766677848338,-515.54072242,0.00016183,2]
[399788233,1766677848348,-500.0,0.00016183,2]
[399788234,1766677848359,-500.0,0.00016183,2]
[399788235,1766677848368,-648.46173605,0.00016183,2]
[399788236,1766677848378,-500.0,0.00016183,2]
[399788237,1766677848388,-500.0,0.00016183,2]
[399788238,1766677848398,-500.0,0.00016183,2]
[399788239,1766677848407,-500.0,0.00016183,2]
[399788240,1766677848418,-500.0,0.00016183,2]
[399788241,1766677848429,-349.16265713,0.00016183,2]
[399788242,1766677848439,-500.0,0.00016183,2]
[399788243,1766677848449,-500.0,0.00016183,2]
[399788244,1766677848459,-500.0,0.00016183,2]
[399788245,1766677848469,-168.21782,0.00016183,2]
[399788246,1766677848479,-500.0,0.00016183,2]
[399788247,1766677848490,-500.0,0.00016183,2]
[399788248,1766677848500,-500.0,0.00016183,2]
[399788249,1766677848510,-500.0,0.00016183,2]
[399788250,1766677848520,-160.176,0.00016183,2]
[399788251,1766677848530,-500.0,0.00016183,2]
[399788252,1766677848540,-500.0,0.00016183,2]
[399788253,1766677848549,-164.92711325,0.00016183,2]
[399788254,1766677848559,-500.0,0.00016183,2]
[399788255,1766677848569,-500.0,0.00016183,2]
[399788256,1766677848580,-500.0,0.00016183,2]
[399788257,1766677848590,-500.66742167,0.00016183,2]
[399788258,1766677848600,-500.0,0.00016183,2]
[399788259,1766677848610,-500.0,0.00016183,2]
[399788260,1766677848619,-500.0,0.00016183,2]
[399788261,1766677848629,-500.0,0.00016183,2]
[399788262,1766677848639,-500.0,0.00016183,2]
[399788263,1766677848648,-500.0,0.00016183,2]
[399788264,1766677848659,-500.0,0.00016183,2]
[399788265,1766677848669,-500.0,0.00016183,2]
[399788266,1766677848678,-500.0,0.00016183,2]
[399788267,1766677848688,-500.0,0.00016183,2]
[399788268,1766677848698,-500.0,0.00016183,2]
[399788269,1766677848708,-150.0,0.00016185,2]
[399788270,1766677848717,-278.77144016,0.00016197,2]
[399788271,1766677848727,-161.31844232,0.00016197,2]
[399788272,1766677848737,-297.95782192,0.00016197,2]
[399788273,1766677848748,-208.13382846,0.00016197,2]
[399788274,1766677848757,-401.09949094,0.00016197,2]
[399788275,1766677848768,-194.3242755,0.00016197,2]
[399788276,1766677848778,-150.0,0.00016199,2]
[399788277,1766677848787,-150.0,0.00016201,2]
[399788278,1766677848797,-168.53,0.00016209,2]
[399788279,1766677848807,-150.0,0.0001621,2]
[399788280,1766677848817,-278.77144016,0.00016214,2]
[399788281,1766677848827,-161.31844232,0.00016214,2]
[399788282,1766677848836,-297.95782192,0.00016214,2]
[399788283,1766677848846,-208.13382846,0.00016214,2]
[399788284,1766677848856,-401.09949094,0.00016214,2]
[399788285,1766677848867,-194.3242755,0.00016214,2]
[399788286,1766677848876,-150.0,0.00016217,2]
[399788287,1766677848890,-519.0,0.0001622,2]
[399788288,1766677848901,-150.0,0.00016222,2]
[399788289,1766677848910,-293.17,0.00016225,2]
[399788290,1766677848920,-236.57,0.00016231,2]
[399788291,1766677848932,-278.77144016,0.00016231,2]
[399788292,1766677848942,-161.31844232,0.00016231,2]
[399788293,1766677848953,-297.95782192,0.00016231,2]
[399788294,1766677848963,-208.13382846,0.00016231,2]
[399788295,1766677848973,-401.09949094,0.00016231,2]
[399788296,1766677848983,-150.0,0.00016231,2]
[399788297,1766677848993,-194.3242755,0.00016231,2]
[399788298,1766677849003,-150.0,0.00016241,2]
[399788299,1766677849013,-150.0,0.00016243,2]
[399788300,1766677849023,-278.77144016,0.00016249,2]
[399788301,1766677849034,-161.31844232,0.00016249,2]
[399788302,1766677849044,-297.95782192,0.00016249,2]
[399788303,1766677849059,-208.13382846,0.00016249,2]
[399788304,1766677849070,-401.09949094,0.00016249,2]
[399788305,1766677849081,-194.3242755,0.00016249,2]
[399788306,1766677849095,-150.0,0.00016249,2]
[399788307,1766677849106,-150.0,0.00016258,2]
[399788308,1766677849116,-150.0,0.00016264,2]
[399788309,1766677849125,-278.77144016,0.00016266,2]
[399788310,1766677849135,-161.31844232,0.00016266,2]
[399788311,1766677849145,-297.95782192,0.00016266,2]
[399788312,1766677849157,-208.13382846,0.00016266,2]
[399788313,1766677849167,-401.09949094,0.00016266,2]
[399788314,1766677849177,-194.3242755,0.00016266,2]
[399788315,1766677849192,-41325.20904142,0.00016269,2]
[399788316,1766677849203,-583.07830005,0.00016269,2]
[399788317,1766677849214,-214.20136534,0.00016272,2]
[399788318,1766677849224,-150.0,0.00016279,2]
[399788319,1766677849234,-150.0,0.00016281,2]
[399788320,1766677849244,-150.0,0.00016282,2]
[399788321,1766677849254,-278.77144016,0.00016283,2]
[399788322,1766677849266,-161.31844232,0.00016283,2]
[399788323,1766677849277,-297.95782192,0.00016283,2]
[399788324,1766677849287,-208.13382846,0.00016283,2]
[399788325,1766677849298,-401.09949094,0.00016283,2]